fUSD/lending_fUSD_20260121
["ID","MTS","AMOUNT","RATE_DAILY","PERIOD"]
[402948416,1769009439549,-250.0,0.00017883,2]
[402948417,1769009439560,-1000.0,0.00017883,2]
[402948418,1769009439572,-250.0,0.00017883,2]
[402948419,1769009439583,-500.0,0.00017883,2]
[402948420,1769009439592,-2000.0,0.00017883,2]
[402948421,1769009439605,-500.0,0.00017883,2]
[402948422,1769009439616,-250.0,0.00017883,2]
[402948423,1769009439626,-578.20924308,0.00017883,2]
[402948424,1769009439635,-500.0,0.00017883,2]
[402948425,1769009439644,-250.0,0.00017883,2]
[402948426,1769009439654,-250.0,0.00017883,2]
[402948427,1769009439663,-250.0,0.00017883,2]
[402948428,1769009439673,-250.0,0.00017883,2]
[402948429,1769009439682,-2000.0,0.00017883,2]
[402948430,1769009439691,-500.0,0.00017883,2]
[402948431,1769009439702,-250.0,0.00017883,2]
[402948432,1769009439713,-250.0,0.00017883,2]
[402948433,1769009439723,-250.0,0.00017883,2]
[402948434,1769009439733,-2000.0,0.00017883,2]
[402948435,1769009439743,-500.0,0.00017883,2]
[402948436,1769009439752,-250.0,0.00017883,2]
[402948437,1769009439762,-250.0,0.00017883,2]
[402948438,1769009439772,-250.0,0.00017883,2]
[402948439,1769009439785,-500.0,0.00017883,2]
[402948440,1769009439796,-2000.0,0.00017883,2]
[402948441,1769009439807,-250.0,0.00017883,2]
[402948443,1769009439817,-250.0,0.00017883,2]
[402948445,1769009439827,-2000.0,0.00017883,2]
[402948447,1769009439837,-250.0,0.00017883,2]
[402948449,1769009439853,-250.0,0.00017883,2]
[402948451,1769009439863,-250.0,0.00017883,2]
[402948452,1769009439874,-500.0,0.00017883,2]
[402948453,1769009439884,-2000.0,0.00017883,2]
[402948454,1769009439895,-250.0,0.00017883,2]
[402948455,1769009439907,-250.0,0.00017883,2]
[402948456,1769009439919,-250.0,0.00017883,2]
[402948457,1769009439931,-500.0,0.00017883,2]
[402948458,1769009439942,-2000.0,0.00017883,2]
[402948459,1769009439953,-500.0,0.00017883,2]
[402948460,1769009439963,-250.0,0.00017883,2]
[402948461,1769009439974,-2000.0,0.00017883,2]
[402948462,1769009439985,-250.0,0.00017883,2]
[402948463,1769009439997,-500.0,0.00017883,2]
[402948464,1769009440008,-250.0,0.00017883,2]
[402948465,1769009440018,-250.0,0.00017883,2]
[402948466,1769009440030,-2000.0,0.00017883,2]
[402948467,1769009440043,-250.0,0.00017883,2]
[402948468,1769009440054,-500.0,0.00017883,2]
[402948469,1769009440070,-500.0,0.00017883,2]
[402948470,1769009440080,-250.0,0.00017883,2]
[402948471,1769009440091,-263.31471796,0.00017883,2]
[402948472,1769009440102,-2000.0,0.00017883,2]
[402948473,1769009440112,-500.0,0.00017883,2]
[402948474,1769009440122,-250.0,0.00017883,2]
[402948475,1769009440134,-500.0,0.00017883,2]
[402948476,1769009440151,-250.0,0.00017883,2]
[402948477,1769009440164,-500.0,0.00017883,2]
[402948478,1769009440174,-2000.0,0.00017883,2]
[402948479,1769009440184,-500.0,0.00017883,2]
[402948480,1769009440195,-500.0,0.00017883,2]
[402948481,1769009440205,-2000.0,0.00017883,2]
[402948482,1769009440215,-250.0,0.00017883,2]
[402948483,1769009440226,-500.0,0.00017883,2]
[402948484,1769009440236,-500.0,0.00017883,2]
[402948485,1769009440246,-500.0,0.00017883,2]
[402948486,1769009440256,-2000.0,0.00017883,2]
[402948487,1769009440266,-500.0,0.00017883,2]
[402948488,1769009440277,-250.0,0.00017883,2]
[402948489,1769009440291,-250.0,0.00017883,2]
[402948490,1769009440301,-500.0,0.00017883,2]
[402948491,1769009440312,-500.0,0.00017883,2]
[402948492,1769009440322,-250.0,0.00017883,2]
[402948493,1769009440333,-500.0,0.00017883,2]
[402948494,1769009440343,-500.0,0.00017883,2]
[402948495,1769009440354,-500.0,0.00017883,2]
[402948496,1769009440365,-151.0,0.00017883,2]
[402948497,1769009440376,-500.0,0.00017883,2]
[402948498,1769009440388,-151.0,0.00017883,2]
[402948499,1769009440400,-151.0,0.00017883,2]
[402948500,1769009440411,-151.0,0.00017883,2]
[402948501,1769009440423,-250.05741751,0.00017883,2]
[402948502,1769009440436,-151.0,0.00017883,2]
[402948503,1769009440446,-151.0,0.00017883,2]
[402948504,1769009440458,-151.0,0.00017883,2]
[402948505,1769009440469,-151.0,0.00017883,2]
[402948506,1769009440480,-151.0,0.00017883,2]
[402948507,1769009440491,-151.0,0.00017883,2]
[402948508,1769009440502,-151.0,0.00017883,2]
[402948509,1769009440513,-151.0,0.00017883,2]
[402948510,1769009440524,-151.0,0.00017883,2]
[402948511,1769009440539,-194.72792766,0.00017883,2]
[402948512,1769009440550,-3002.70085788,0.00017883,2]
[402948513,1769009440560,-640.85595563,0.00017883,2]
[402948514,1769009440572,-385.37690796,0.000179,2]
[402948515,1769009440584,-195.92069658,0.000179,3]
[402948516,1769009440595,-1203.02783775,0.000179,2]
[402948517,1769009440607,-177.51312027,0.000179,2]
[402948518,1769009440620,-15413.68104602,0.000179,2]
[402948519,1769009440631,-16171.02784895,0.0001791,2]
[402948520,1769009440642,-250.0,0.00017911,2]
[402948521,1769009440655,-232.72524733,0.00017911,2]
[402948522,1769009440667,-15055.0,0.00017973,2]
[402948523,1769009440678,-30935.0,0.00017973,2]
[402948524,1769009440690,-150.0,0.00017973,2]
[402948525,1769009440701,-150.0,0.00017973,2]
[402948526,1769009440713,-1202.74527863,0.0001799,2]
[402948527,1769009440724,-1202.74527863,0.0001799,2]
[402948528,1769009440735,-600.0,0.00017993,2]
[402948529,1769009440746,-300.0,0.00017993,2]
[402948530,1769009440757,-233.73659831,0.00017993,2]
[402948531,1769009440767,-250.0,0.00017993,2]
[402948532,1769009440778,-193.0,0.00017993,2]
[402948533,1769009440793,-300.0,0.00017993,2]
[402948534,1769009440804,-300.0,0.00017993,2]
[402948535,1769009440815,-5141.58765933,0.00017993,2]
[402948536,1769009440826,-250.0,0.00017993,2]
[402948537,1769009440837,-257.97959331,0.00017993,2]
[402948538,1769009440848,-195.0,0.00017993,2]
[402948539,1769009440859,-2500.0,0.00017993,2]
[402948540,1769009440869,-600.0,0.00017993,2]
[402948541,1769009440880,-195.0,0.00017993,2]
[402948542,1769009440890,-1680.0,0.00017993,2]
[402948543,1769009440900,-151.0,0.00017997,2]
[402948544,1769009440911,-150.0,0.00017999,2]
[402948546,1769009440921,-252.48903335,0.00017999,2]
[402948547,1769009440931,-500.0,0.00017999,2]
[402948548,1769009440942,-302.41974858,0.00017999,2]
[402948549,1769009440952,-500.0,0.00017999,2]
[402948550,1769009440963,-500.0,0.00017999,2]
[402948551,1769009440974,-500.0,0.00017999,2]
[402948552,1769009440985,-500.0,0.00017999,2]
[402948553,1769009440996,-500.0,0.00017999,2]
[402948554,1769009441006,-500.0,0.00017999,2]
[402948555,1769009441016,-500.0,0.00017999,2]
[402948556,1769009441027,-500.0,0.00017999,2]
[402948557,1769009441040,-500.0,0.00017999,2]
[402948558,1769009441050,-500.0,0.00017999,2]
[402948559,1769009441061,-500.0,0.00017999,2]
[402948560,1769009441071,-500.0,0.00017999,2]
[402948561,1769009441082,-500.0,0.00017999,2]
[402948562,1769009441092,-300.0,0.00017999,2]
[402948563,1769009441103,-300.0,0.00017999,2]
[402948564,1769009441114,-150.0,0.00017999,2]
[402948566,1769009441124,-150.0,0.00017999,2]
[402948567,1769009441135,-300.0,0.00017999,2]
[402948569,1769009441146,-174.04894204,0.00017999,2]
[402948570,1769009441157,-453.06195824,0.00017999,2]
[402948571,1769009441167,-353.43213979,0.00017999,2]
[402948572,1769009441178,-500.0,0.00017999,2]
[402948573,1769009441189,-500.0,0.00017999,2]
[402948574,1769009441199,-500.0,0.00017999,2]
[402948575,1769009441210,-203.88282731,0.00017999,2]
[402948576,1769009441220,-225.74946425,0.00017999,2]
[402948577,1769009441231,-500.0,0.00017999,2]
[402948578,1769009441241,-567.15249349,0.00017999,2]
[402948579,1769009441252,-500.0,0.00017999,2]
[402948580,1769009441263,-500.0,0.00017999,2]
[402948581,1769009441274,-500.0,0.00017999,2]
[402948582,1769009441289,-500.0,0.00017999,2]
[402948583,1769009441300,-2859373.79482013,0.00018,2]
[402948584,1769009441760,-1258.41132576,0.00018,2]
[402948585,1769009441772,-9791.08731132,0.00018,2]
[402948586,1769009441784,-2344.66072333,0.00018,2]
[402948587,1769009442142,-934.53854276,0.00018,2]
[402948588,1769009442154,-471.87366345,0.00018,2]
[402948589,1769009442166,-670.10000021,0.00018,2]
[402948590,1769009442179,-5972.68705834,0.00018,2]
[402948607,1769009443810,-360.11324534,0.000179,2]
[402948609,1769009443824,-671.13398646,0.000179,2]
[402948612,1769009443839,-6681.8722495,0.000179,2]
[402948614,1769009443856,-2744.13875738,0.000179,2]
[402948615,1769009443868,-286.13624262,0.00018,2]
[402948618,1769009443930,-303.94,0.00018,2]
[402948619,1769009443984,-3013.09883196,0.00018,2]
[402948620,1769009443997,-456.00050311,0.00018,2]
[402948621,1769009444010,-447.1571751,0.00018,2]
[402948622,1769009444029,-4228.39135094,0.00018,2]
[402948623,1769009444042,-7095667.3390124,0.00018,2]
[402948624,1769009444055,-4974.98539055,0.00018,2]
[402948625,1769009445065,-1.7e-07,0.00018,2]
[402948626,1769009445101,-3816.26585088,0.00018,2]
[402948627,1769009445145,-15326.61639768,0.00018,2]
[402948628,1769009445357,-22989.30025605,0.00018,2]
[402948637,1769009446054,-418.9359996,0.00018,2]
[402948638,1769009446066,-6855.90067227,0.00018,2]
[402948639,1769009446099,-66657.64910273,0.00018,2]
[402948640,1769009446111,-25186.3396482,0.00018,2]
[402948641,1769009446338,-537482.25951174,0.00018,2]
[402948642,1769009446351,-1827606.65977592,0.00018,2]
[402948643,1769009446363,-112767.98932962,0.00018,2]
[402948644,1769009446398,-908.811586,0.00018,2]
[402948647,1769009447412,545.74415025,0.00016392,2]
[402948648,1769009447438,-1204.62341701,0.00018,2]
[402948649,1769009447448,-550.61114008,0.00018,2]
[402948650,1769009447600,-655.3938732,0.00018,2]
[402948651,1769009447613,-1509360.57725799,0.00018,2]
[402948652,1769009452550,-500.0,0.00016402,2]
[402948653,1769009452576,-76.90132893,0.00016402,2]
[402948654,1769009466734,9454.26584975,0.00016293,2]
[402948655,1769009466759,10000.01,0.00016293,2]
[402948656,1769009466784,10000.01,0.00016293,2]
[402948657,1769009466809,3780.44275025,0.00016293,2]
[402948659,1769009498084,10000.01,0.00016283,2]
[402948660,1769009498114,10000.01,0.00016283,2]
[402948661,1769009498143,10000.01,0.00016283,2]
[402948662,1769009498172,10000.01,0.00016283,2]
[402948663,1769009498213,10000.01,0.00016283,2]
[402948664,1769009498243,10000.01,0.00016283,2]
[402948665,1769009498274,10000.01,0.00016283,2]
[402948666,1769009498305,10000.01,0.00016283,2]
[402948667,1769009498334,10000.01,0.00016283,2]
[402948668,1769009524684,-1177.58596831,0.00016282,5]
[402948669,1769009540241,-1047.06319096,0.00016282,5]
[402948670,1769009557260,-1770.26893121,0.00016283,2]
[402948671,1769009562495,-10000.01,0.00016283,2]
[402948672,1769009565764,-10000.01,0.00016283,2]
[402948673,1769009565912,-10000.01,0.00016283,2]
[402948674,1769009566119,-10000.01,0.00016283,2]
[402948675,1769009566331,-10000.01,0.00016283,2]
[402948676,1769009566730,-10000.01,0.00016283,2]
[402948677,1769009575321,-10000.01,0.00016283,2]
[402948678,1769009581230,-10000.01,0.00016283,2]
[402948679,1769009587564,641.63701,7.945e-05,2]
[402948680,1769009603361,626.63656431,0.00016183,2]
[402948681,1769009607431,4347.49575269,0.00016183,2]
[402948682,1769009607457,5528.08859362,0.00016183,2]
[402948683,1769009613361,810.32558609,0.00016183,2]
[402948684,1769009620503,1171.43294558,0.00016183,2]
[402948685,1769009718181,209.43,0.00015797,2]
[402948686,1769009760080,780.95529706,0.00016183,2]
[402948687,1769009776854,2694.76757765,0.00015642,2]
[402948688,1769009776878,10805.0,0.00015642,2]
[402948689,1769009776903,5638.24242235,0.00015642,2]
[402948690,1769009937080,5528.41757765,0.00015551,2]
[402948691,1769009937101,11166.66,0.00015551,2]
[402948692,1769009937123,11166.66,0.00015551,2]
[402948693,1769009937144,11166.66,0.00015551,2]
[402948694,1769009937167,5786.29602881,0.00015551,2]
[402948695,1769009937191,4345.65639354,0.00015551,2]
[402948696,1769009963609,166.66,0.0001592,2]
[402948697,1769009993084,183.83,0.00015427,2]
[402948698,1769009996579,1090.14963527,0.00015427,2]
[402948699,1769009996603,762.27036473,0.00015427,2]
[402948700,1769010112086,521.32,0.00015918,2]
[402948701,1769010199886,150.0,0.00015422,2]
[402948702,1769010201063,-562.63161125,0.00016182,2]
[402948703,1769010203111,-637.36838875,0.00016182,2]
[402948704,1769010203134,-202.66731991,0.00016182,2]
[402948705,1769010205304,-47.33268009,0.00016182,2]
[402948706,1769010205326,-153.76731991,0.00016182,2]
[402948707,1769010216387,1603.74497,0.00016101,2]
[402948708,1769010228703,166.66,0.00014658,2]
[402948709,1769010229138,166.66,0.00014967,2]
[402948710,1769010229304,166.66,0.00015275,2]
[402948711,1769010229473,166.66,0.00015584,2]
[402948712,1769010229738,166.66,0.00015893,2]
[402948713,1769010365435,200.0,0.00015428,2]
[402948717,1769010514421,1715.66069408,0.00016083,2]
[402948718,1769010514447,5786.29602881,0.00016083,2]
[402948719,1769010514473,5786.29602881,0.00016083,2]
[402948720,1769010514497,5786.29602881,0.00016083,2]
[402948721,1769010514521,5786.29602881,0.00016083,2]
[402948722,1769010514545,5786.29602881,0.00016083,2]
[402948723,1769010514568,5786.29602881,0.00016083,2]
[402948724,1769010514593,5786.29602881,0.00016083,2]
[402948725,1769010604163,2146.37,0.00016073,2]
[402948726,1769010604387,2146.37,0.00016073,2]
[402948727,1769010604592,2146.37,0.00016073,2]
[402948728,1769010604829,2146.37,0.00016073,2]
[402948729,1769010605068,2109.52,0.00016073,2]
[402948730,1769010605091,36.85,0.00016073,2]
[402948731,1769010606214,2286.54,0.00016073,2]
[402948732,1769010606480,2286.54,0.00016073,2]
[402948740,1769010631841,-300.0,0.0001608,2]
[402948741,1769010631851,-1200.0,0.0001608,2]
[402948742,1769010631860,-9730.98075112,0.00016081,2]
[402948745,1769010632123,-12110.86541565,0.00016081,2]
[402948747,1769010632132,-520.6368647,0.00016081,2]
[402948749,1769010632142,-220.21537602,0.00016083,2]
[402948751,1769010632151,-151081.00304584,0.00016083,2]
[402948754,1769010632161,-1148.78266955,0.00016083,2]
[402948789,1769010638579,-659.93455117,0.00016081,2]
[402948790,1769010638590,-707.82344134,0.00016081,2]
[402948791,1769010638600,-5300.19595435,0.00016081,2]
[402948792,1769010638612,-2220.0719649,0.00016081,2]
[402948793,1769010638622,-194.30252998,0.00016082,2]
[402948794,1769010638633,-198.09352234,0.00016082,2]
[402948795,1769010638643,-500.00000001,0.00016082,2]
[402948796,1769010638652,-188.2522023,0.00016082,2]
[402948797,1769010638662,-500.0,0.00016082,2]
[402948798,1769010638672,-500.0,0.00016082,2]
[402948799,1769010638682,-167.30386517,0.00016082,2]
[402948800,1769010638695,-332.69613483,0.00016082,2]
[402948801,1769010638704,-161.95604531,0.00016082,2]
[402948802,1769010638714,-119.88991949,0.00016082,2]
[402948803,1769010638726,-380.11008051,0.00016082,2]
[402948804,1769010638736,-500.0,0.00016082,2]
[402948805,1769010638745,-500.0,0.00016082,2]
[402948806,1769010638756,-500.0,0.00016082,2]
[402948807,1769010638766,-500.0,0.00016082,2]
[402948808,1769010638776,-500.0,0.00016082,2]
[402948809,1769010638785,-89.36343104,0.00016082,2]
[402948810,1769010638844,-410.63656896,0.00016082,2]
[402948811,1769010638854,-500.0,0.00016082,2]
[402948812,1769010638864,-500.0,0.00016082,2]
[402948813,1769010638874,-500.0,0.00016082,2]
[402948814,1769010638884,-284.97052247,0.00016082,2]
[402948815,1769010638896,-215.02947753,0.00016082,2]
[402948816,1769010638906,-500.0,0.00016082,2]
[402948817,1769010638916,-500.0,0.00016082,2]
[402948818,1769010638927,-298.8557773,0.00016082,2]
[402948819,1769010638939,-201.1442227,0.00016082,2]
[402948820,1769010638949,-500.0,0.00016082,2]
[402948821,1769010638959,-500.0,0.00016082,2]
[402948822,1769010638970,-500.0,0.00016082,2]
[402948823,1769010638980,-500.0,0.00016082,2]
[402948824,1769010638990,-500.0,0.00016082,2]
[402948825,1769010639002,-500.0,0.00016082,2]
[402948826,1769010639012,-500.0,0.00016082,2]
[402948827,1769010639022,-533.81365475,0.00016082,2]
[402948828,1769010639032,-500.0,0.00016082,2]
[402948829,1769010639045,-500.0,0.00016082,2]
[402948830,1769010639055,-460.03092255,0.00016082,2]
[402948831,1769010639067,-39.96907745,0.00016082,2]
[402948832,1769010639078,-456.65896135,0.00016082,2]
[402948833,1769010639155,-43.34103865,0.00016082,2]
[402948834,1769010639165,-805550.48138886,0.00016083,2]
[402948835,1769010639175,-198.93309843,0.00016181,2]
[402948836,1769010639185,-232.72524733,0.00016181,2]
[402948837,1769010639195,-7569.8795,0.00016182,2]
[402948838,1769010639205,-5142.7566,0.00016182,2]
[402948839,1769010639214,-300.0,0.00016182,2]
[402948840,1769010639223,-195.0,0.00016182,2]
[402948841,1769010639233,-375.32425764,0.00016182,2]
[402948842,1769010639243,-257.97959331,0.00016182,2]
[402948843,1769010639253,-2500.0,0.00016183,2]
[402948844,1769010639263,-3223.719,0.00016183,2]
[402948845,1769010639272,-392.521,0.00016183,2]
[402948846,1769010639282,-709.03488782,0.00016193,2]
[402948847,1769010639294,-166.66,0.00016201,2]
[402948848,1769010639303,-520.6368647,0.0001621,2]
[402948849,1769010639312,-1000.0,0.00016272,2]
[402948850,1769010639322,-150.0,0.00016273,2]
[402948851,1769010639331,-500.0,0.00016273,2]
[402948852,1769010639341,-151.0,0.00016273,2]
[402948853,1769010639351,-151.0,0.00016273,2]
[402948854,1769010639360,-151.0,0.00016273,2]
[402948855,1769010639369,-151.0,0.00016273,2]
[402948856,1769010639379,-151.0,0.00016273,2]
[402948857,1769010639387,-151.0,0.00016273,2]
[402948858,1769010639397,-151.0,0.00016273,2]
[402948859,1769010639406,-151.0,0.00016273,2]
[402948860,1769010639415,-151.0,0.00016273,2]
[402948861,1769010639425,-151.0,0.00016273,2]
[402948862,1769010639434,-151.0,0.00016273,2]
[402948863,1769010639443,-500.0,0.00016273,2]
[402948864,1769010639453,-151.0,0.00016273,2]
[402948865,1769010639462,-151.0,0.00016273,2]
[402948866,1769010639471,-200.0,0.00016273,2]
[402948867,1769010639480,-500.0,0.00016273,2]
[402948868,1769010639489,-151.0,0.00016273,2]
[402948869,1769010639498,-151.0,0.00016273,2]
[402948870,1769010639507,-500.0,0.00016273,2]
[402948871,1769010639516,-151.0,0.00016273,2]
[402948872,1769010639526,-500.0,0.00016273,2]
[402948873,1769010639537,-151.0,0.00016273,2]
[402948874,1769010639546,-151.0,0.00016273,2]
[402948875,1769010639555,-500.0,0.00016273,2]
[402948876,1769010639564,-151.0,0.00016273,2]
[402948877,1769010639573,-151.0,0.00016273,2]
[402948878,1769010639582,-500.0,0.00016273,2]
[402948879,1769010639591,-151.0,0.00016273,2]
[402948880,1769010639601,-151.0,0.00016273,2]
[402948881,1769010639610,-483.18470933,0.00016273,2]
[402948882,1769010639619,-151.0,0.00016273,2]
[402948883,1769010639629,-151.0,0.00016273,2]
[402948884,1769010639638,-151.0,0.00016273,2]
[402948885,1769010639648,-151.0,0.00016273,2]
[402948886,1769010639658,-151.0,0.00016273,2]
[402948887,1769010639668,-151.0,0.00016273,2]
[402948888,1769010639677,-151.0,0.00016273,2]
[402948889,1769010639687,-151.0,0.00016273,2]
[402948890,1769010639696,-500.0,0.00016273,2]
[402948891,1769010639706,-151.0,0.00016273,2]
[402948892,1769010639715,-500.0,0.00016273,2]
[402948893,1769010639725,-183.40861567,0.00016273,2]
[402948895,1769010639735,-500.0,0.00016273,2]
[402948896,1769010639746,-500.0,0.00016273,2]
[402948897,1769010639756,-500.0,0.00016273,2]
[402948898,1769010639765,-500.0,0.00016273,2]
[402948899,1769010639775,-500.0,0.00016273,2]
[402948900,1769010639784,-200.0,0.00016273,2]
[402948901,1769010639794,-994.41,0.00016273,2]
[402948902,1769010639804,-9999.99,0.00016282,2]
[402948903,1769010639814,-150.99,0.00016282,2]
[402948904,1769010639823,-9226.45,0.00016282,2]
[402948906,1769010639833,-999.99,0.00016282,2]
[402948907,1769010639842,-499.99,0.00016282,2]
[402948909,1769010639851,-1193.97,0.00016282,2]
[402948911,1769010639861,-150.99,0.00016282,2]
[402948913,1769010639870,-9999.99,0.00016282,2]
[402948914,1769010639879,-1768.03,0.00016282,2]
[402948915,1769010639889,-1550.71,0.00016282,2]
[402948916,1769010639898,-9999.99,0.00016282,2]
[402948917,1769010639907,-9999.99,0.00016282,2]
[402948918,1769010639917,-1047.06319096,0.00016282,5]
[402948919,1769010639927,-629.45617124,0.00016282,2]
[402948920,1769010639939,-150.0,0.00016282,2]
[402948921,1769010639948,-500.0,0.00016282,2]
[402948922,1769010639958,-500.0,0.00016282,2]
[402948923,1769010639968,-500.0,0.00016282,2]
[402948924,1769010639978,-489.99,0.00016282,2]
[402948925,1769010639987,-506.24982574,0.00016282,2]
[402948926,1769010639996,-500.0,0.00016282,2]
[402948927,1769010640007,-500.0,0.00016282,2]
[402948928,1769010640017,-500.0,0.00016282,2]
[402948929,1769010640026,-500.0,0.00016282,2]
[402948930,1769010640036,-500.0,0.00016282,2]
[402948931,1769010640045,-510.51181022,0.00016282,2]
[402948932,1769010640054,-561.44150394,0.00016282,2]
[402948933,1769010640063,-21841.8461667,0.00016283,2]
[402948934,1769010640072,-1000.0,0.00016293,2]
[402948935,1769010640082,-33234.7286,0.00016293,2]
[402948936,1769010640091,-500.0,0.00016392,2]
[402948937,1769010640100,-500.0,0.00016392,2]
[402948938,1769010640110,-500.0,0.00016392,2]
[402948939,1769010640118,-500.0,0.00016392,2]
[402948940,1769010640127,-500.0,0.00016392,2]
[402948941,1769010640136,-500.0,0.00016392,2]
[402948942,1769010640145,-500.0,0.00016392,2]
[402948943,1769010640154,-500.0,0.00016392,2]
[402948944,1769010640163,-500.0,0.00016392,2]
[402948945,1769010640173,-500.0,0.00016392,2]
[402948946,1769010640181,-519.05995183,0.00016392,2]
[402948947,1769010640191,-500.0,0.00016392,2]
[402948948,1769010640199,-500.0,0.00016392,2]
[402948949,1769010640208,-500.0,0.00016392,2]
[402948950,1769010640217,-500.0,0.00016392,2]
[402948951,1769010640226,-500.0,0.00016392,2]
[402948952,1769010640235,-500.0,0.00016392,2]
[402948953,1769010640244,-500.0,0.00016392,2]
[402948954,1769010640253,-500.0,0.00016392,2]
[402948955,1769010640263,-500.0,0.00016392,2]
[402948956,1769010640272,-500.0,0.00016392,2]
[402948957,1769010640281,-500.0,0.00016392,2]
[402948958,1769010640290,-500.0,0.00016392,2]
[402948959,1769010640299,-530.71,0.00016402,2]
[402948960,1769010640308,-530.71,0.00016402,2]
[402948961,1769010640317,-500.0,0.00016402,2]
[402948962,1769010640327,-500.0,0.00016402,2]
[402948963,1769010640336,-500.0,0.00016402,2]
[402948964,1769010640345,-500.0,0.00016402,2]
[402948965,1769010640354,-500.0,0.00016402,2]
[402948966,1769010640363,-500.0,0.00016402,2]
[402948967,1769010640372,-500.0,0.00016402,2]
[402948968,1769010640382,-500.0,0.00016402,2]
[402948969,1769010640391,-500.0,0.00016402,2]
[402948970,1769010640400,-500.0,0.00016402,2]
[402948971,1769010640410,-500.0,0.00016402,2]
[402948972,1769010640419,-500.0,0.00016402,2]
[402948973,1769010640428,-1202.74527863,0.00016428,2]
[402948974,1769010640438,-709.03488781,0.00016437,2]
[402948975,1769010640447,-585.5583357,0.00016438,2]
[402948976,1769010640456,-500.0,0.00016438,2]
[402948977,1769010640465,-500.0,0.00016438,2]
[402948978,1769010640474,-500.0,0.00016438,2]
[402948979,1769010640483,-500.0,0.00016438,2]
[402948980,1769010640491,-500.0,0.00016438,2]
[402948981,1769010640500,-500.0,0.00016438,2]
[402948982,1769010640509,-500.0,0.00016438,2]
[402948983,1769010640518,-500.0,0.00016438,2]
[402948984,1769010640527,-500.0,0.00016438,2]
[402948985,1769010640536,-325.81314391,0.00016438,2]
[402948986,1769010640545,-500.0,0.00016438,2]
[402948987,1769010640555,-500.0,0.00016438,2]
[402948988,1769010640564,-500.0,0.00016438,2]
[402948990,1769010640573,-500.0,0.00016438,2]
[402948991,1769010640583,-500.0,0.00016438,2]
[402948992,1769010640592,-500.0,0.00016438,2]
[402948993,1769010640602,-500.0,0.00016438,2]
[402948994,1769010640611,-500.0,0.00016438,2]
[402948995,1769010640620,-500.0,0.00016438,2]
[402948996,1769010640630,-500.0,0.00016438,2]
[402948997,1769010640639,-500.0,0.00016438,2]
[402948998,1769010640649,-500.0,0.00016438,2]
[402948999,1769010640658,-500.0,0.00016438,2]
[402949000,1769010640668,-500.0,0.00016438,2]
[402949001,1769010640677,-500.0,0.00016438,2]
[402949002,1769010640687,-500.0,0.00016438,2]
[402949003,1769010640697,-500.0,0.00016438,2]
[402949004,1769010640706,-500.0,0.00016438,2]
[402949005,1769010640715,-202974.49032084,0.00016438,2]
[402949006,1769010640725,-151.0,0.00016438,2]
[402949007,1769010640735,-166.66,0.00016446,2]
[402949008,1769010640744,-450.0,0.00016461,2]
[402949009,1769010640754,-151.0,0.00016464,2]
[402949010,1769010640763,-151.0,0.00016464,2]
[402949011,1769010640772,-152.17,0.00016464,2]
[402949012,1769010640781,-151.0,0.00016465,2]
[402949013,1769010640792,-151.0,0.00016465,2]